bitfinex-derivatives/quotes_BTCF0:USTF0_20251011
["timestamp","ask_amount","ask_price","bid_price","bid_amount"]
[1760172056571,0.1245188,111170.0,111160.0,0.50162]
[1760172056766,0.1245188,111170.0,111160.0,0.14082]
[1760172056969,0.4853188,111170.0,111160.0,0.14082]
[1760172057370,0.8853188,111170.0,111160.0,0.12]
[1760172058766,0.4853188,111170.0,111160.0,0.14082]
[1760172059777,0.4633188,111170.0,111160.0,0.14082]
[1760172060173,0.1025188,111170.0,111160.0,0.14082]
[1760172060367,0.13469645,111190.0,111160.0,1.34963061]
[1760172060573,0.0898707,111180.0,111170.0,0.38162]
[1760172060772,0.1025107,111180.0,111170.0,0.49162]
[1760172061076,0.0898707,111180.0,111170.0,0.13082]
[1760172061373,0.0898707,111180.0,111170.0,0.49162]
[1760172061874,0.0898665,111190.0,111170.0,0.9814945]
[1760172062062,0.0898665,111190.0,111180.0,0.37894771]
[1760172062267,0.0898627,111190.0,111180.0,0.48894771]
[1760172062468,0.09311412,111210.0,111190.0,0.1106827]
[1760172062767,0.0772146,111200.0,111190.0,0.85974771]
[1760172062967,0.0772146,111200.0,111190.0,0.50162]
[1760172063172,0.4726546,111200.0,111190.0,0.14082]
[1760172063671,0.1118546,111200.0,111190.0,0.14082]
[1760172064069,0.4726546,111200.0,111190.0,0.14082]
[1760172064266,0.4726546,111200.0,111190.0,0.1520325]
[1760172064973,0.4726546,111200.0,111190.0,0.1312125]
[1760172065174,0.4726546,111200.0,111190.0,0.1520325]
[1760172067380,0.4726546,111200.0,111190.0,0.1312125]
[1760172067574,0.4726546,111200.0,111190.0,0.1520325]
[1760172068783,0.13468015,111210.0,111190.0,1.36081851]
[1760172068982,0.1024905,111210.0,111190.0,0.96081851]
[1760172069171,0.1024905,111210.0,111190.0,0.51016021]
[1760172069172,0.4852946,111200.0,111190.0,0.51016021]
[1760172069477,0.1244946,111200.0,111190.0,0.51016021]
[1760172069678,0.1024946,111200.0,111190.0,0.51016021]
[1760172070471,0.0898546,111200.0,111190.0,0.51016021]
[1760172070877,0.1024946,111200.0,111190.0,0.51016021]
[1760172071481,0.1244946,111200.0,111190.0,0.51016021]
[1760172072083,0.4852946,111200.0,111190.0,0.1520325]
[1760172072983,0.1024946,111200.0,111190.0,0.1520325]
[1760172073184,0.0898546,111200.0,111190.0,0.5128325]
[1760172073576,0.03218965,111210.0,111200.0,0.1236846]
[1760172073777,0.0898466,111210.0,111200.0,1.26107215]
[1760172074079,0.1024866,111210.0,111200.0,1.25974771]
[1760172075183,0.0898466,111210.0,111200.0,1.25974771]
[1760172076074,0.1024866,111210.0,111200.0,1.25974771]
[1760172076483,0.0898466,111210.0,111200.0,1.25974771]
[1760172077282,0.1024866,111210.0,111200.0,1.25974771]
[1760172077486,0.1244866,111210.0,111200.0,0.49894771]
[1760172077783,0.1024866,111210.0,111200.0,0.49894771]
[1760172077984,0.0898478,111210.0,111200.0,1.25974771]
[1760172078380,0.1024844,111220.0,111200.0,1.25974771]
[1760172078679,0.1024844,111220.0,111210.0,0.36292]
[1760172078885,0.1024797,111220.0,111210.0,0.48292]
[1760172079087,0.18294972,111230.0,111210.0,0.9727672]
[1760172079284,0.13466525,111230.0,111220.0,0.72104771]
[1760172079487,0.0898356,111230.0,111220.0,0.84104771]
[1760172079684,0.13465775,111240.0,111220.0,0.93088701]
[1760172079881,0.13465775,111240.0,111230.0,0.36292]
[1760172080183,0.13465325,111240.0,111230.0,0.48292]
[1760172080383,0.18293392,111250.0,111230.0,0.5727508]
[1760172080579,0.13464945,111250.0,111240.0,0.36024771]
[1760172080783,0.03218965,111250.0,111240.0,0.84104771]
[1760172081081,0.0898155,111250.0,111240.0,0.84104771]
[1760172081680,0.03218965,111260.0,111240.0,0.84104771]
[1760172081884,0.51152497,111270.0,111260.0,0.00212]
[1760172081885,0.0897994,111270.0,111260.0,0.00212]
[1760172082082,0.0897994,111270.0,111260.0,0.13212]
[1760172082083,0.1024394,111270.0,111260.0,0.13212]
[1760172082282,0.1024394,111270.0,111260.0,0.14278537]
[1760172083082,0.0897994,111270.0,111260.0,0.50091308]
[1760172083283,0.0897994,111270.0,111260.0,0.14278537]
[1760172083284,0.4853094,111270.0,111260.0,0.14278537]
[1760172083781,0.4505934,111280.0,111260.0,0.86869308]
[1760172084085,0.4505934,111280.0,111260.0,0.51056537]
[1760172084280,0.4505838,111290.0,111270.0,0.71892771]
[1760172084586,0.05,111300.0,111280.0,0.74727771]
[1760172084787,0.05,111300.0,111280.0,0.86727771]
[1760172084989,0.05,111300.0,111290.0,0.02137]
[1760172085283,0.05,111300.0,111290.0,0.51949771]
[1760172085284,0.08564,111300.0,111290.0,0.51949771]
[1760172085484,0.5362152,111300.0,111290.0,0.16137]
[1760172085684,0.1754152,111300.0,111290.0,0.16137]
[1760172086187,0.1524852,111300.0,111290.0,0.16137]
[1760172086384,0.9362152,111300.0,111290.0,0.14]
[1760172086991,0.9362152,111300.0,111290.0,0.16137]
[1760172086992,0.5754152,111300.0,111290.0,0.16137]
[1760172087487,0.08564,111300.0,111290.0,0.16137]
[1760172087987,0.05,111300.0,111290.0,0.16137]
[1760172088187,0.1754152,111300.0,111290.0,0.16137]
[1760172088491,0.08564,111300.0,111290.0,0.16137]
[1760172088790,0.05,111300.0,111290.0,0.88029771]
[1760172088981,0.05,111300.0,111290.0,0.92217]
[1760172089291,0.08564,111300.0,111290.0,0.16137]
[1760172089487,0.05,111300.0,111290.0,0.52217]
[1760172089683,0.0201,111300.0,111290.0,1.0119532]
[1760172090189,0.0201,111300.0,111290.0,0.92217]
[1760172090692,0.4632703,111320.0,111290.0,0.92217]
[1760172090887,0.4862003,111320.0,111310.0,0.02137]
[1760172091191,0.1254003,111320.0,111310.0,0.52217]
[1760172091692,0.4862003,111320.0,111310.0,0.16137]
[1760172092386,0.1254003,111320.0,111310.0,0.52217]
[1760172093284,0.01271,111330.0,111310.0,0.52915]
[1760172093484,0.37351,111340.0,111320.0,0.37949771]
[1760172093694,0.4632541,111340.0,111320.0,0.51949771]
[1760172093991,0.1024541,111340.0,111320.0,0.88029771]
[1760172094186,0.1024541,111340.0,111330.0,0.38217]
[1760172094386,0.0897401,111350.0,111330.0,0.51915]
[1760172094582,0.0897401,111350.0,111340.0,0.37949771]
[1760172094788,0.0897401,111350.0,111340.0,0.51949771]
[1760172094989,0.1253801,111350.0,111340.0,0.51949771]
[1760172095190,0.8861801,111350.0,111340.0,0.14]
[1760172095385,0.1024501,111350.0,111340.0,0.51949771]
[1760172095591,0.1024501,111350.0,111340.0,0.16137]
[1760172095789,0.1024501,111350.0,111340.0,0.51949771]
[1760172096189,0.1024415,111360.0,111340.0,0.88029771]
[1760172096394,0.1024337,111370.0,111350.0,0.02137]
[1760172096696,0.1253637,111370.0,111360.0,0.02137]
[1760172096897,0.1024337,111370.0,111360.0,0.47217]
[1760172097092,0.4861637,111370.0,111360.0,0.11137]
[1760172097690,0.4632337,111370.0,111360.0,0.11137]
[1760172099392,0.1024337,111370.0,111360.0,0.11137]
[1760172099691,0.4861637,111370.0,111360.0,0.09]
[1760172100289,0.8861637,111370.0,111360.0,0.09]
[1760172100994,0.1253229,111340.0,111330.0,0.02235]
[1760172101197,0.125331,111330.0,111320.0,0.0328952]
[1760172101393,0.486131,111330.0,111320.0,0.1305452]
[1760172101698,0.886131,111330.0,111320.0,0.1305452]
[1760172101889,0.886131,111330.0,111320.0,0.12]
[1760172102389,0.486131,111330.0,111320.0,0.12]
[1760172103399,0.486131,111330.0,111320.0,0.15278155]
[1760172103893,0.886131,111330.0,111320.0,0.13043155]
[1760172104899,0.886131,111330.0,111320.0,0.15278155]
[1760172105603,0.464231,111330.0,111320.0,0.15278155]
[1760172105797,0.103431,111330.0,111320.0,0.91090926]
[1760172106001,0.103431,111330.0,111320.0,1.27170926]
[1760172106302,0.103431,111330.0,111320.0,0.91090926]
[1760172107500,0.486131,111330.0,111320.0,0.55278155]
[1760172107801,0.886131,111330.0,111320.0,0.13043155]
[1760172108409,0.103431,111330.0,111320.0,0.91090926]
[1760172108995,0.486131,111330.0,111320.0,0.55278155]
[1760172109196,0.125331,111330.0,111320.0,0.55278155]
[1760172109400,0.125331,111330.0,111320.0,0.15278155]
[1760172109597,0.486131,111330.0,111320.0,0.15278155]
[1760172110698,0.486131,111330.0,111320.0,0.13043155]
[1760172110896,0.93441547,111330.0,111320.0,0.08043155]
[1760172111098,0.886131,111330.0,111320.0,0.08043155]
[1760172111302,0.9505103,111330.0,111320.0,0.07]
[1760172111504,0.886131,111330.0,111320.0,0.07]
[1760172113308,0.886131,111330.0,111320.0,0.035]
[1760172113510,1.30558422,111330.0,111320.0,0.035]
[1760172113804,0.886131,111330.0,111320.0,0.035]
[1760172114206,0.089767,111310.0,111300.0,8.455e-05]
[1760172114400,0.5506772,111310.0,111300.0,0.04038709]
[1760172115006,1.3114772,111310.0,111300.0,0.04038709]
[1760172115711,1.3114772,111310.0,111300.0,0.06265709]
[1760172116404,1.3114772,111310.0,111300.0,0.04038709]
[1760172117006,1.247167,111310.0,111300.0,0.04038709]
[1760172117201,0.14408541,111310.0,111300.0,0.49573031]
[1760172117402,0.42265313,111320.0,111310.0,0.03589]
[1760172117403,0.48270731,111320.0,111310.0,0.03589]
[1760172117613,0.4505589,111320.0,111310.0,0.61491916]
[1760172118813,0.4863589,111320.0,111310.0,0.18184594]
[1760172119015,0.4863589,111320.0,111310.0,0.16227]
[1760172119816,0.87930731,111320.0,111310.0,0.14]
[1760172120611,0.86567731,111320.0,111310.0,0.17589]
[1760172120817,0.86567731,111320.0,111310.0,0.16227]
[1760172121011,0.86567731,111320.0,111310.0,0.17589]
[1760172121411,0.8335289,111320.0,111310.0,0.17589]
[1760172122311,0.4727289,111320.0,111310.0,0.17589]
[1760172122513,0.4863589,111320.0,111310.0,0.14]
[1760172122706,0.87930731,111320.0,111310.0,0.14]
[1760172123105,1.27930731,111320.0,111310.0,0.14]
[1760172123315,1.29538203,111320.0,111310.0,0.14]
[1760172126017,1.44508203,111320.0,111310.0,0.14]
[1760172126216,1.29538203,111320.0,111310.0,0.14]
[1760172128112,1.29538203,111320.0,111310.0,0.16227]
[1760172128320,0.86570902,111320.0,111310.0,0.17589]
[1760172128520,0.86570902,111320.0,111310.0,0.59534322]
[1760172128716,0.03218012,111320.0,111310.0,0.99534322]
[1760172128922,0.48273452,111330.0,111320.0,0.03589]
[1760172129118,0.39298012,111330.0,111320.0,0.57534322]
[1760172129418,0.48272702,111340.0,111320.0,1.33614322]
[1760172129622,0.08041572,111340.0,111330.0,0.45534322]
[1760172129924,0.55312852,111340.0,111330.0,0.15589]
[1760172130224,0.16013593,111340.0,111330.0,0.57534322]
[1760172130611,0.52093593,111340.0,111330.0,0.57534322]
[1760172130815,0.52093593,111340.0,111330.0,0.15589]
[1760172131621,0.52093593,111340.0,111330.0,0.57534322]
[1760172132023,0.52093593,111340.0,111330.0,0.15589]
[1760172132716,0.53456593,111340.0,111330.0,0.14227]
[1760172132918,0.53456593,111340.0,111330.0,0.12]
[1760172133118,0.93456593,111340.0,111330.0,0.12]
[1760172133420,0.8863428,111340.0,111330.0,0.12]
[1760172133624,0.950653,111340.0,111330.0,0.12]
[1760172133822,0.8863428,111340.0,111330.0,0.12]
[1760172134017,0.96624956,111340.0,111330.0,0.12]
[1760172134221,0.95078014,111340.0,111330.0,0.12]
[1760172137522,1.37023336,111340.0,111330.0,0.12]
[1760172138221,0.1119369,111310.0,111300.0,0.04627709]
[1760172138526,0.50496394,111310.0,111300.0,0.17627709]
[1760172139026,0.50496394,111310.0,111300.0,0.57627709]
[1760172139528,0.50503835,111310.0,111300.0,0.57614334]
[1760172139922,0.48286835,111310.0,111300.0,0.99559656]
[1760172140117,0.08984131,111310.0,111300.0,0.99559656]
[1760172140522,0.48286835,111310.0,111300.0,0.99559656]
[1760172141023,0.48286835,111310.0,111300.0,0.17614334]
[1760172141024,0.50503835,111310.0,111300.0,0.17614334]
[1760172141729,0.51866835,111310.0,111300.0,0.16252334]
[1760172142131,0.51866835,111310.0,111300.0,0.14025334]
[1760172142819,0.48644131,111310.0,111300.0,0.14025334]
[1760172143220,0.51867402,111310.0,111300.0,0.14025334]
[1760172143427,0.53478188,111310.0,111300.0,0.14025334]
[1760172143632,0.93478188,111310.0,111300.0,0.14025334]
[1760172144333,0.52115188,111310.0,111300.0,0.17547334]
[1760172144532,0.55338219,111310.0,111300.0,0.17547334]
[1760172144731,0.52115188,111310.0,111300.0,0.17547334]
[1760172145427,0.55338565,111310.0,111300.0,0.17547334]
[1760172145628,0.50504508,111310.0,111300.0,0.17547334]
[1760172145830,0.65474508,111310.0,111300.0,0.17547334]
[1760172146029,0.50504508,111310.0,111300.0,0.17547334]
[1760172150835,0.03230818,111310.0,111300.0,0.99492656]
[1760172151135,7.441e-05,111310.0,111300.0,1.44549296]
[1760172151434,7.441e-05,111310.0,111300.0,1.35572656]
[1760172155540,0.08983271,111310.0,111300.0,1.35572656]
[1760172155735,0.1103144,111310.0,111300.0,1.35572656]
[1760172156045,0.1103144,111310.0,111300.0,0.95572656]
[1760172156237,0.0205561,111310.0,111300.0,1.44549286]
[1760172157038,0.1103144,111310.0,111300.0,1.35572656]
[1760172157242,0.1103144,111310.0,111300.0,0.95572656]
[1760172157436,0.1326344,111310.0,111300.0,0.53627334]
[1760172157632,0.16486817,111310.0,111300.0,0.95572656]
[1760172157835,0.16486817,111310.0,111300.0,0.17547334]
[1760172158339,0.19438497,111310.0,111300.0,0.16252334]
[1760172158640,0.18097497,111310.0,111300.0,0.17547334]
[1760172159037,0.15865497,111310.0,111300.0,0.59492656]
[1760172159243,0.05279186,111310.0,111300.0,1.04549286]
[1760172159447,0.05279186,111310.0,111300.0,1.44549286]
[1760172159745,0.0205561,111310.0,111300.0,1.44549286]
[1760172160642,0.01101914,111310.0,111300.0,1.44549286]
[1760172160943,0.12198726,111320.0,111310.0,0.03611]
[1760172161237,0.12198726,111320.0,111310.0,0.94636322]
[1760172161537,0.12198726,111320.0,111310.0,0.58556322]
[1760172162142,0.14430726,111320.0,111310.0,0.58556322]
[1760172162335,0.14430726,111320.0,111310.0,0.16611]
[1760172162534,0.12198726,111320.0,111310.0,0.16611]
[1760172162945,0.14430726,111320.0,111310.0,0.16611]
[1760172164145,0.12198726,111320.0,111310.0,0.16611]
[1760172164444,0.12198596,111320.0,111310.0,1.03612152]
[1760172164643,0.03223576,111320.0,111310.0,1.03612152]
[1760172164853,0.03223576,111320.0,111310.0,1.43612152]
[1760172165051,0.12198596,111320.0,111310.0,1.43612152]
[1760172165346,0.03223576,111320.0,111310.0,1.43612152]
[1760172165544,0.12198596,111320.0,111310.0,1.43612152]
[1760172165744,0.00996737,111320.0,111310.0,1.43612152]
[1760172165937,0.13808377,111330.0,111320.0,0.03661]
[1760172166137,0.13808377,111330.0,111320.0,0.93686322]
[1760172166344,0.0897432,111330.0,111320.0,0.93686322]
[1760172166846,0.1117232,111330.0,111320.0,0.51741]
[1760172167243,0.5117232,111330.0,111320.0,0.15661]
[1760172167443,0.8725232,111330.0,111320.0,0.15661]
[1760172168347,0.5117232,111330.0,111320.0,0.51741]
[1760172171156,0.13807927,111340.0,111330.0,0.03661]
[1760172171449,0.0897387,111340.0,111330.0,0.51741]
[1760172171650,0.1117187,111340.0,111330.0,0.51741]
[1760172171852,0.4725187,111340.0,111330.0,0.15661]
[1760172172147,0.8852687,111340.0,111330.0,0.14332]
[1760172172454,0.8852687,111340.0,111330.0,0.12]
[1760172172654,0.90642582,111340.0,111330.0,0.12]
[1760172173454,0.90642582,111340.0,111330.0,0.14332]
[1760172173758,0.89367582,111340.0,111330.0,0.15654]
[1760172174257,0.49367582,111340.0,111330.0,0.15654]
[1760172174558,0.11089122,111340.0,111330.0,0.51734]
[1760172178157,0.02115712,111340.0,111330.0,1.0070821]
[1760172178364,0.11089122,111340.0,111330.0,0.91734]
[1760172178857,0.13338122,111340.0,111330.0,0.51734]
[1760172179455,0.49418122,111340.0,111330.0,0.15654]
[1760172180764,0.50733122,111340.0,111330.0,0.15654]
[1760172180969,0.13338122,111340.0,111330.0,0.15654]
[1760172181363,0.90733122,111340.0,111330.0,0.12]
[1760172181864,0.95567179,111340.0,111330.0,0.12]
[1760172182065,0.1122402,111320.0,111310.0,0.03507]
[1760172182265,0.13339732,111320.0,111310.0,0.17507]
[1760172182465,0.50734732,111320.0,111310.0,0.16212]
[1760172182863,0.49419732,111320.0,111310.0,0.17534]
[1760172183064,0.54258423,111320.0,111310.0,0.17534]
[1760172184370,0.49419732,111320.0,111310.0,0.17534]
[1760172185072,0.95573423,111320.0,111310.0,0.14]
[1760172185265,0.94258423,111320.0,111310.0,0.17534]
[1760172186070,0.54258423,111320.0,111310.0,0.17534]
[1760172187365,0.49419732,111320.0,111310.0,0.17534]
[1760172187674,0.47170732,111320.0,111310.0,0.17534]
[1760172188374,0.11090732,111320.0,111310.0,0.17534]
[1760172188571,0.13339732,111320.0,111310.0,0.17534]
[1760172189477,0.11090732,111320.0,111310.0,0.17534]
[1760172190069,0.14654732,111320.0,111310.0,0.17534]
[1760172190374,0.50734732,111320.0,111310.0,0.14]
[1760172190768,0.50734732,111320.0,111310.0,0.16212]
[1760172191173,0.50734732,111320.0,111310.0,0.14]
[1760172192078,0.50734732,111320.0,111310.0,0.16212]
[1760172192467,0.50734732,111320.0,111310.0,0.17534]
[1760172192976,0.50734732,111320.0,111310.0,0.16212]
[1760172193770,0.50734732,111320.0,111310.0,0.14]
[1760172194080,0.95573423,111320.0,111310.0,0.14]
[1760172195373,0.90734732,111320.0,111310.0,0.14]
[1760172195576,0.49419732,111320.0,111310.0,0.17534]
[1760172195875,0.52642513,111320.0,111310.0,0.17534]
[1760172196672,0.40918691,111330.0,111310.0,0.665099]
[1760172196878,0.50565202,111330.0,111320.0,0.03534]
[1760172197173,0.52814202,111330.0,111320.0,0.14534]
[1760172197577,0.1673415,111330.0,111320.0,0.14534]
[1760172198174,0.5281415,111330.0,111320.0,0.14534]
[1760172198482,0.49591746,111330.0,111320.0,0.14534]
[1760172198680,0.52814283,111330.0,111320.0,0.14534]
[1760172198879,0.49591746,111330.0,111320.0,0.14534]
[1760172199081,0.50906746,111330.0,111320.0,0.13212]
[1760172199481,0.49591746,111330.0,111320.0,0.14534]
[1760172200177,0.54430437,111330.0,111320.0,0.14534]
[1760172200382,0.49591746,111330.0,111320.0,0.14534]
[1760172200785,0.54430437,111330.0,111320.0,0.14534]
[1760172201286,0.54430437,111330.0,111320.0,0.13212]
[1760172201287,0.95745437,111330.0,111320.0,0.13212]
[1760172201482,0.90906746,111330.0,111320.0,0.13212]
[1760172201682,0.49591746,111330.0,111320.0,0.14534]
[1760172203083,0.52814616,111330.0,111320.0,0.14534]
[1760172203785,0.54211616,111330.0,111320.0,0.14534]
[1760172204091,0.90988746,111330.0,111320.0,0.11]
[1760172204593,0.90988746,111330.0,111320.0,0.1096]
[1760172204594,0.95827437,111330.0,111320.0,0.1096]
[1760172204890,0.03671,111310.0,111300.0,0.03284334]
[1760172205093,0.18158404,111310.0,111300.0,0.15284334]
[1760172205482,0.11263966,111310.0,111300.0,0.56579334]
[1760172205887,0.13537966,111310.0,111300.0,0.56579334]
[1760172206089,0.1353869,111310.0,111300.0,0.56579334]
[1760172206288,0.1353869,111310.0,111300.0,0.16579334]
[1760172206491,0.18159128,111310.0,111300.0,0.15284334]
[1760172206691,0.54239128,111310.0,111300.0,0.15284334]
[1760172207393,0.95854381,111310.0,111300.0,0.13025334]
[1760172208695,1.36705052,111310.0,111300.0,0.12]
[1760172210895,0.86709224,111310.0,111300.0,0.12]
[1760172211204,0.55851032,111310.0,111300.0,0.152603]
[1760172211896,0.5101569,111310.0,111300.0,0.12]
[1760172212700,0.9101569,111310.0,111300.0,0.12]
[1760172213500,0.1125305,111280.0,111270.0,0.39634]
[1760172213700,0.1126712,111280.0,111270.0,0.51634]
[1760172214303,0.1126712,111280.0,111270.0,0.52653874]
[1760172214599,0.1354112,111280.0,111270.0,0.52653874]
[1760172215101,0.1126712,111280.0,111270.0,0.52653874]
[1760172215302,0.1354112,111280.0,111270.0,0.52653874]
[1760172215701,0.1126712,111280.0,111270.0,0.52653874]
[1760172217499,0.1354112,111280.0,111270.0,0.52653874]
[1760172218092,0.1493812,111280.0,111270.0,0.52653874]
[1760172218495,0.4962112,111280.0,111270.0,0.16573874]
[1760172218696,0.5101812,111280.0,111270.0,0.16573874]
[1760172218892,0.4962112,111280.0,111270.0,0.16573874]
[1760172219103,0.5101812,111280.0,111270.0,0.16573874]
[1760172219607,0.5101812,111280.0,111270.0,0.13019874]
[1760172219801,0.54240243,111280.0,111270.0,0.13019874]
[1760172220194,0.54240243,111280.0,111270.0,0.15278874]
[1760172220703,0.54240243,111280.0,111270.0,0.16573874]
[1760172221302,0.52843243,111280.0,111270.0,0.16573874]
[1760172221502,0.54240243,111280.0,111270.0,0.16573874]
[1760172221901,0.51952173,111280.0,111270.0,0.16573874]
[1760172222101,0.54268502,111280.0,111270.0,0.16573874]
[1760172222800,0.54268502,111280.0,111270.0,0.15278874]
[1760172224097,0.54268502,111280.0,111270.0,0.16665874]
[1760172224598,0.54268502,111280.0,111270.0,0.13019874]
[1760172225403,0.51046379,111280.0,111270.0,0.13019874]
[1760172225605,0.55879563,111280.0,111270.0,0.13019874]
[1760172226300,0.55879563,111280.0,111270.0,0.15157874]
[1760172226806,0.55879563,111280.0,111270.0,0.13019874]
[1760172227504,0.51046379,111280.0,111270.0,0.13019874]
[1760172228100,0.51046379,111280.0,111270.0,0.15157874]
[1760172228408,0.52867262,111280.0,111270.0,0.16544874]
[1760172229106,0.54482563,111280.0,111270.0,0.16544874]
[1760172229307,0.55743563,111280.0,111270.0,0.16544874]
[1760172229607,0.55743563,111280.0,111270.0,0.15157874]
[1760172230597,0.55743563,111280.0,111270.0,0.13019874]
[1760172232306,0.55743563,111280.0,111270.0,0.15157874]
[1760172233104,0.54482563,111280.0,111270.0,0.16544874]
[1760172234099,0.55771563,111280.0,111270.0,0.16544874]
[1760172234607,0.55771563,111280.0,111270.0,0.13019874]
[1760172236109,0.50938379,111280.0,111270.0,0.15255874]
[1760172236409,0.49649379,111280.0,111270.0,0.16644874]
[1760172236908,0.54489279,111280.0,111270.0,0.16644874]
[1760172237104,0.50938379,111280.0,111270.0,0.16644874]
[1760172238003,0.55780186,111280.0,111270.0,0.16644874]
[1760172238203,0.49649379,111280.0,111270.0,0.16644874]
[1760172239310,0.54492698,111280.0,111270.0,0.16644874]
[1760172239608,0.49649379,111280.0,111270.0,0.16644874]
[1760172241211,0.54492861,111280.0,111270.0,0.16644874]
[1760172241710,0.55781861,111280.0,111270.0,0.16644874]
[1760172242208,0.55781861,111280.0,111270.0,0.15255874]
[1760172242406,0.55781861,111280.0,111270.0,0.16644874]
[1760172242808,0.55781861,111280.0,111270.0,0.15255874]
[1760172243600,0.50938379,111280.0,111270.0,0.15255874]
[1760172244411,0.50938379,111280.0,111270.0,0.16644874]
[1760172244805,0.50938379,111280.0,111270.0,0.15255874]
[1760172245007,0.9291552,111280.0,111270.0,0.13019874]
[1760172245506,1.3291552,111280.0,111270.0,0.12]
[1760172245709,1.39359254,111280.0,111270.0,0.12]
[1760172246610,1.65869254,111280.0,111270.0,0.12]
[1760172247307,1.23892113,111280.0,111270.0,0.14236]
[1760172247513,0.76159379,111280.0,111270.0,0.15625]
[1760172247704,0.64906329,111280.0,111270.0,0.55625]
[1760172247910,0.07160617,111280.0,111270.0,0.6460485]
[1760172248210,0.07160617,111280.0,111270.0,1.0068485]
[1760172248611,0.05545562,111280.0,111270.0,1.0068485]
[1760172251019,0.14524612,111280.0,111270.0,1.0068485]
[1760172251613,0.11295379,111280.0,111270.0,1.0068485]
[1760172254117,0.11295379,111280.0,111270.0,1.42661991]
[1760172257317,0.11295379,111280.0,111270.0,1.0068485]
[1760172257923,0.02316329,111280.0,111270.0,1.0068485]
[1760172258217,0.02316329,111280.0,111270.0,1.42661991]
[1760172258218,0.01927072,111280.0,111270.0,1.42661991]
[1760172258812,0.00045597,111280.0,111270.0,1.02661991]
[1760172260420,0.00045597,111280.0,111270.0,1.42661991]
[1760172263326,0.09024637,111280.0,111270.0,1.42661991]
[1760172263927,0.09024637,111280.0,111270.0,0.6068485]
[1760172265229,0.09024637,111280.0,111270.0,0.51705]
[1760172265527,0.09024637,111280.0,111270.0,0.6068484]
[1760172266127,0.11233637,111280.0,111270.0,0.6068484]
[1760172266429,0.09024637,111280.0,111270.0,0.6068484]
[1760172267021,0.09024637,111280.0,111270.0,1.02661981]
[1760172267724,0.09024637,111280.0,111270.0,0.6068484]
[1760172268428,0.11233637,111280.0,111270.0,0.51705]
[1760172268629,0.12545637,111280.0,111270.0,0.51705]
[1760172268928,0.5185487,111280.0,111270.0,0.14236]
[1760172269128,0.9185487,111280.0,111270.0,0.12]
[1760172269826,0.9185487,111280.0,111270.0,0.14285]
[1760172270731,0.9185487,111280.0,111270.0,0.12]
[1760172271624,1.30602778,111280.0,111270.0,0.12]
[1760172271827,1.35447066,111280.0,111270.0,0.12]
[1760172272028,0.1250086,111270.0,111260.0,0.0099303]
[1760172272227,0.0898067,111260.0,111250.0,0.03681642]
[1760172272427,0.48627267,111260.0,111250.0,0.03292642]
[1760172272634,0.91852095,111260.0,111250.0,0.03292642]
[1760172273330,0.90540095,111260.0,111250.0,0.04629642]
[1760172273932,0.91852095,111260.0,111250.0,0.04629642]
[1760172274132,0.91852095,111260.0,111250.0,0.05616246]
[1760172274730,0.88627267,111260.0,111250.0,0.05616246]
[1760172275133,0.47315267,111260.0,111250.0,0.05616246]
[1760172275734,0.88627267,111260.0,111250.0,0.04279246]
[1760172276133,0.91852095,111260.0,111250.0,0.04279246]
[1760172278333,0.88627267,111260.0,111250.0,0.04279246]
[1760172278937,0.91852095,111260.0,111250.0,0.04279246]
[1760172279534,0.91852095,111260.0,111250.0,0.01994246]
[1760172280335,0.88627267,111260.0,111250.0,0.01994246]
[1760172280637,0.88627267,111260.0,111250.0,0.04279246]
[1760172280836,0.91852095,111260.0,111250.0,0.04279246]
[1760172281031,1.33829236,111260.0,111250.0,0.01994246]
[1760172282334,0.93829236,111260.0,111250.0,0.01994246]
[1760172283344,0.50540095,111260.0,111250.0,0.05582246]
[1760172284434,0.51916095,111260.0,111250.0,0.04196246]
[1760172284934,0.51916095,111260.0,111250.0,0.04745377]
[1760172285339,0.50540095,111260.0,111250.0,0.06131377]
[1760172286139,0.50540095,111260.0,111250.0,0.08088971]
[1760172286341,0.14460095,111260.0,111250.0,0.08088971]
[1760172286536,0.11235267,111260.0,111250.0,0.08088971]
[1760172287537,0.09026197,111260.0,111250.0,0.93150381]
[1760172287733,0.00045597,111260.0,111250.0,0.93150381]
[1760172288838,0.0897892,111290.0,111280.0,0.03588]
[1760172289044,0.0897892,111290.0,111280.0,0.93645141]
[1760172289245,0.33373969,111310.0,111290.0,0.14523774]
[1760172289440,0.28529681,111310.0,111300.0,0.39668]
[1760172289641,0.28529681,111310.0,111300.0,0.51668]
[1760172291347,0.30634681,111310.0,111300.0,0.51668]
[1760172291740,0.66714681,111310.0,111300.0,0.15588]
[1760172300552,0.30634681,111310.0,111300.0,0.15588]
[1760172300847,0.32902079,111310.0,111300.0,0.15588]
[1760172305049,0.21820109,111310.0,111300.0,1.36352687]
[1760172305750,0.30796679,111310.0,111300.0,0.91668]
[1760172305944,0.30796679,111310.0,111300.0,1.0064538]
[1760172306147,0.21820109,111310.0,111300.0,1.0064538]
[1760172306950,0.30796679,111310.0,111300.0,1.0064538]
[1760172308855,0.21820109,111310.0,111300.0,1.0064538]
[1760172309052,0.05768434,111330.0,111320.0,0.1247176]
[1760172309354,0.05768434,111330.0,111320.0,0.96259067]
[1760172309558,0.05768434,111330.0,111320.0,0.87283307]
[1760172309752,0.07870434,111330.0,111320.0,0.51576]
[1760172310450,0.43950434,111330.0,111320.0,0.15496]
[1760172314859,0.45285434,111330.0,111320.0,0.15496]
[1760172315054,0.90129722,111330.0,111320.0,0.12]
[1760172315247,0.85285434,111330.0,111320.0,0.12]
[1760172315653,0.85285434,111330.0,111320.0,0.14153]
[1760172315853,0.48772287,111330.0,111320.0,0.15496]
[1760172316150,0.90107287,111330.0,111320.0,0.12]
[1760172316355,0.85285434,111330.0,111320.0,0.12]
[1760172316960,0.90111539,111330.0,111320.0,0.12]
[1760172317159,0.85285434,111330.0,111320.0,0.14153]
[1760172317361,0.85285434,111330.0,111320.0,0.12]
[1760172318356,0.85285434,111330.0,111320.0,0.15496]
[1760172318559,0.48783411,111330.0,111320.0,0.15496]
[1760172318855,0.43950434,111330.0,111320.0,0.15496]
[1760172319055,0.48783359,111330.0,111320.0,0.15496]
[1760172319255,0.43950434,111330.0,111320.0,0.15496]
[1760172320957,0.46282993,111330.0,111320.0,0.15496]
[1760172321359,0.4534842,111330.0,111320.0,0.15496]
[1760172321560,0.5222118,111330.0,111320.0,0.15496]
[1760172322055,0.506098,111330.0,111320.0,0.15496]
[1760172322254,0.40913641,111340.0,111330.0,0.1247098]
[1760172322255,0.09083003,111340.0,111330.0,0.1247098]
[1760172322457,0.0897387,111350.0,111340.0,0.01343]